bitfinex-derivatives/quotes_SOLF0:USTF0_20250923
["timestamp","ask_amount","ask_price","bid_price","bid_amount"]
[1758626067429,3.22599564,218.04,218.03,7.46]
[1758626069731,10.85599564,218.04,218.0,7.46]
[1758626070030,3.22599564,218.03,218.0,7.46]
[1758626070228,13.67,218.05,218.0,7.46]
[1758626070432,3.2267156,218.04,217.99,111.9]
[1758626070632,3.2267156,218.03,218.0,7.46]
[1758626070932,21.3,218.05,218.01,7.46]
[1758626071129,3.22680077,218.04,218.0,4.1257]
[1758626071431,3.22680077,218.03,218.01,7.46]
[1758626071633,21.3,218.05,218.01,7.46]
[1758626071834,3.22707406,218.04,218.01,7.46]
[1758626072027,3.22707406,218.03,218.01,7.46]
[1758626072228,21.3,218.05,218.0,4.1257]
[1758626072425,3.22721971,218.04,218.01,7.46]
[1758626072632,3.22721971,218.03,218.0,4.1257]
[1758626072834,21.3,218.05,218.01,7.46]
[1758626073035,3.22730757,218.04,218.01,7.46]
[1758626073230,3.22730757,218.03,218.01,7.46]
[1758626073430,21.3,218.05,218.0,4.1257]
[1758626073630,3.22756496,218.04,218.01,7.46]
[1758626073923,3.22756496,218.03,218.0,4.1257]
[1758626074128,21.3,218.05,218.01,7.46]
[1758626074441,3.20672582,218.04,218.01,7.46]
[1758626074632,3.20672582,218.03,218.0,7.46]
[1758626074833,21.3,218.05,217.99,116.0259]
[1758626075033,3.20680568,218.04,217.99,116.0259]
[1758626075230,21.3,218.05,218.0,7.46]
[1758626075435,3.20708613,218.04,217.99,116.0259]
[1758626075630,21.3,218.05,217.99,116.0259]
[1758626075831,3.20717793,218.04,217.99,116.0259]
[1758626076129,21.3,218.05,218.01,7.46]
[1758626076331,3.20734918,218.04,218.01,7.46]
[1758626076633,13.67,218.05,218.0,7.46]
[1758626076931,3.20744403,218.04,218.0,7.46]
[1758626077133,13.67,218.05,218.0,7.46]
[1758626077336,3.20772149,218.04,218.0,7.46]
[1758626077631,13.67,218.05,218.0,7.46]
[1758626077831,3.20780621,218.04,218.01,4.1255]
[1758626078033,13.67,218.05,218.02,7.46]
[1758626078233,3.20780446,218.04,218.01,4.1255]
[1758626078434,3.20810409,218.03,218.01,4.1255]
[1758626078741,13.67,218.05,218.02,4.1253]
[1758626078934,3.20810583,218.04,218.03,7.46]
[1758626079937,13.67,218.05,218.04,11.585]
[1758626080137,16.87911607,218.05,218.04,123.485]
[1758626080328,16.87911607,218.05,218.04,119.36]
[1758626081538,24.50911607,218.05,218.01,4.1255]
[1758626081738,3.20919338,218.04,218.02,119.34]
[1758626081940,21.3,218.05,218.02,119.34]
[1758626082236,3.20918989,218.04,218.02,119.34]
[1758626082438,21.3,218.05,218.02,119.34]
[1758626082638,3.20917769,218.04,218.02,119.34]
[1758626082839,3.20917769,218.04,217.95,7.46]
[1758626082840,3.20891629,218.03,217.95,7.46]
[1758626083138,3.20891629,218.02,217.96,119.34]
[1758626083535,3.20891629,218.02,217.98,4.1261]
[1758626083741,3.20891629,218.01,217.99,7.18]
[1758626083935,3.20891629,218.01,218.0,119.06]
[1758626084139,13.67,218.05,218.0,119.06]
[1758626084336,3.20971397,218.04,218.0,111.88]
[1758626084536,3.20971397,218.03,218.01,7.18]
[1758626084740,3.20971397,218.02,218.01,7.18]
[1758626085237,13.67,218.05,218.01,7.18]
[1758626085935,21.18,218.05,218.01,4.1255]
[1758626086138,13.67,218.05,218.01,4.1255]
[1758626086339,13.67,218.05,218.02,7.18]
[1758626087045,21.18,218.05,218.02,7.18]
[1758626087842,13.67,218.05,218.02,7.18]
[1758626088053,7.51,218.04,218.02,7.18]
[1758626088242,7.51,218.04,217.98,11.306]
[1758626088446,7.51,218.04,218.01,111.88]
[1758626088743,7.51,218.04,218.01,119.06]
[1758626089244,13.67,218.05,218.01,116.0055]
[1758626089450,13.67,218.05,218.02,7.18]
[1758626089652,13.67,218.05,218.01,111.88]
[1758626090250,13.67,218.05,218.02,7.18]
[1758626090744,13.67,218.05,218.02,11.3053]
[1758626091549,13.67,218.05,218.03,7.18]
[1758626091850,13.67,218.05,218.04,7.18]
[1758626092545,13.67,218.05,218.03,4.1251]
[1758626092743,13.67,218.05,218.04,7.18]
[1758626096152,13.67,218.05,218.04,119.06]
[1758626105157,8.558e-05,218.05,218.04,119.06]
[1758626110954,4.3,218.07,218.04,119.06]
[1758626111157,4.3,218.07,218.06,7.18]
[1758626111358,7.51,218.11,218.06,119.04]
[1758626111550,7.51,218.11,218.07,7.18]
[1758626111753,7.51,218.11,218.08,115.9842]
[1758626112459,7.51,218.11,218.09,4.1239]
[1758626112655,7.51,218.17,218.11,7.18]
[1758626112860,7.51,218.19,218.12,111.86]
[1758626113760,4.3,218.18,218.11,13.22867788]
[1758626113956,6.22507788,218.18,218.12,80.22]
[1758626114157,7.16,218.17,218.12,80.22]
[1758626114356,6.22507788,218.18,218.12,87.28]
[1758626114558,7.16,218.17,218.12,87.28]
[1758626114753,7.16,218.16,218.12,7.06]
[1758626114959,4.1227,218.17,218.09,4.124]
[1758626115259,4.3,218.18,218.12,1.92507788]
[1758626115457,4.3,218.18,218.14,7.06]
[1758626115662,11.46,218.18,218.14,7.06]
[1758626115854,11.46,218.18,218.15,112.18]
[1758626116353,11.46,218.18,218.16,7.17]
[1758626116658,4.3,218.18,218.17,112.16]
[1758626117557,4.3,218.18,218.17,119.33]
[1758626120559,8.29,218.23,218.18,7.17]
[1758626120762,8.29,218.23,218.21,7.17]
[1758626120960,8.29,218.23,218.22,119.29]
[1758626121351,8.29,218.23,218.14,64.1374]
[1758626121557,8.29,218.23,218.21,7.17]
[1758626121954,8.29,218.23,218.22,90.68]
[1758626122470,8.29,218.23,218.22,97.85]
[1758626122661,8.29,218.23,218.22,119.27]
[1758626123968,8.29,218.23,218.22,7.17]
[1758626124171,8.29,218.23,218.22,97.41]
[1758626126563,8.29,218.23,218.22,99.33507788]
[1758626128564,8.29,218.23,218.22,7.17]
[1758626128766,8.29,218.23,218.22,119.17]
[1758626129670,8.29,218.23,218.22,7.17]
[1758626129862,8.29,218.23,218.22,119.17]
[1758626132267,1.3865,218.23,218.22,119.17]
[1758626134462,4.1199,218.32,218.25,11.2911]
[1758626134667,4.1199,218.32,218.26,111.98]
[1758626134873,7.05,218.33,218.26,113.90507788]
[1758626135871,7.05,218.33,218.27,4.1206]
[1758626136974,7.05,218.33,218.25,7.17]
[1758626137176,1.92507788,218.35,218.26,13.68]
[1758626137177,1.92507788,218.29,218.26,13.68]
[1758626137366,7.05,218.28,218.27,22.08]
[1758626139573,7.05,218.3,218.27,29.25]
[1758626140172,6.04467788,218.33,218.27,29.25]
[1758626140373,13.09467788,218.33,218.27,29.25]
[1758626140673,7.05,218.33,218.22,9.09507788]
[1758626140979,1.92507788,218.29,218.23,31.98]
[1758626141979,7.05,218.27,218.23,39.15]
[1758626142181,4.1206,218.28,218.24,111.96]
[1758626142377,7.05,218.27,218.24,111.96]
[1758626142567,7.05,218.27,218.24,111.94]
[1758626144072,6.99,218.27,218.24,111.94]
[1758626144982,6.99,218.27,218.24,119.17]
[1758626145281,6.99,218.27,218.24,7.23]
[1758626145282,4.1208,218.27,218.24,7.23]
[1758626145475,8.91507788,218.25,218.19,7.23]
[1758626145875,1.92507788,218.25,218.2,111.94]
[1758626146081,6.99,218.24,218.2,119.17]
[1758626146480,6.99,218.24,218.2,7.23]
[1758626146681,6.99,218.24,218.2,119.15]
[1758626146882,11.1114,218.24,218.2,119.15]
[1758626147183,8.91507788,218.23,218.2,119.15]
[1758626148182,13.03667788,218.23,218.16,11.3527]
[1758626148382,6.99,218.2,218.17,57.22]
[1758626148882,6.99,218.2,218.17,64.45]
[1758626149684,4.1217,218.22,218.17,57.22]
[1758626149884,11.1117,218.22,218.17,57.22]
[1758626150285,4.1217,218.22,218.17,57.22]
[1758626150485,4.1217,218.22,218.18,7.23]
[1758626150680,4.1217,218.22,218.17,57.22]
[1758626150882,7.12471559,218.24,218.18,7.23]
[1758626151685,4.1213,218.24,218.18,11.3522]
[1758626151985,6.99,218.23,218.12,7.23]
[1758626152186,6.99,218.2,218.12,119.13]
[1758626152389,6.99,218.2,218.12,123.2534]
[1758626152684,6.99,218.2,218.12,119.13]
[1758626153080,6.99,218.2,218.13,4.1232]
[1758626153081,11.1121,218.2,218.13,4.1232]
[1758626154887,11.1121,218.2,218.14,4.123]
[1758626155086,6.99,218.2,218.14,11.353]
[1758626159990,7.12531559,218.21,218.15,7.23]
[1758626161791,6.99,218.19,218.15,7.23]
[1758626162486,6.99,218.19,218.13,4.1232]
[1758626162891,6.99,218.19,218.14,7.23]
[1758626163188,6.99,218.19,218.13,11.3532]
[1758626166093,6.99,218.19,218.13,7.23]
[1758626166281,6.99,218.17,218.1,7.23]
[1758626166486,6.99,218.17,218.09,110.17536408]
[1758626166487,6.99,218.17,218.09,222.19536408]
[1758626166686,3.00341559,218.18,218.09,222.19536408]
[1758626166888,6.99,218.17,218.09,222.19536408]
[1758626167090,71.1196,218.17,218.09,222.19536408]
[1758626167288,64.1296,218.17,218.09,222.19536408]
[1758626167694,6.99,218.16,218.09,112.02]
[1758626168294,64.1296,218.17,218.09,112.02]
[1758626168495,6.99,218.16,218.08,458.54]
[1758626168698,6.99,218.15,218.08,458.54]
[1758626168894,11.1136,218.12,218.08,465.77]
[1758626169194,11.1136,218.12,218.09,112.02]
[1758626169591,11.1136,218.12,218.09,119.25]
[1758626170588,4.1238,218.11,218.09,112.02]
[1758626170792,6.99,218.1,218.04,11.3549]
[1758626170999,6.99,218.1,218.06,7.23]
[1758626171297,6.99,218.1,218.05,111.98]
[1758626171298,6.99,218.09,218.05,111.98]
[1758626171491,6.99,218.09,218.05,119.21]
[1758626171698,6.99,218.11,218.05,119.21]
[1758626172698,4.1244,218.08,218.05,111.98]
[1758626172997,6.99,218.07,218.05,111.98]
[1758626174699,4.1244,218.08,218.06,7.25]
[1758626176300,11.7944,218.08,218.04,7.26]
[1758626176498,7.67,218.07,218.03,111.98]
[1758626176695,4.1244,218.08,218.03,111.98]
[1758626177000,4.1244,218.08,218.04,7.26]
[1758626177200,4.1244,218.08,218.03,111.98]
[1758626177397,11.7944,218.08,218.04,7.26]
[1758626177897,11.7944,218.08,218.03,111.98]
[1758626178102,11.7944,218.08,218.04,7.26]
[1758626179601,7.67,218.07,218.04,7.26]
[1758626180196,4.1244,218.08,218.03,111.98]
[1758626180695,11.7944,218.08,218.04,7.26]
[1758626181097,11.7946,218.07,218.01,7.26]
[1758626181305,7.67,218.07,218.01,119.2]
[1758626181801,7.67,218.04,217.94,111.94]
[1758626182001,64.1477,218.11,217.94,111.94]
[1758626182002,7.67,218.13,218.01,7.26]
[1758626182196,7.67,218.19,218.04,7.26]
[1758626182396,3.00341559,218.18,218.04,7.26]
[1758626182699,7.67,218.19,218.06,7.26]
[1758626182900,7.67,218.19,218.12,7.26]
[1758626183097,3.00341559,218.24,218.13,7.26]
[1758626183300,7.67,218.26,218.14,7.26]
[1758626183701,7.67,218.26,218.12,112.72]
[1758626183900,7.67,218.26,218.14,7.26]
[1758626184500,4.1213,218.24,218.16,7.26]
[1758626186606,7.67,218.21,218.16,7.26]
[1758626186908,7.67,218.19,218.08,7.26]
[1758626187211,7.12501559,218.23,218.08,7.26]
[1758626187902,4.1216,218.23,218.13,7.26]
[1758626188099,4.1216,218.23,218.13,69.66]
[1758626188398,4.1218,218.22,218.13,69.66]
[1758626188604,7.67,218.21,218.13,69.66]
[1758626188807,7.67,218.21,218.13,62.4]
[1758626189805,7.67,218.21,218.13,69.66]
[1758626191416,11.792,218.21,218.13,69.66]
[1758626191712,3.00341559,218.19,218.09,120.36]
[1758626192413,4.1228,218.16,218.09,7.26]
[1758626192613,7.67,218.15,218.09,7.26]
[1758626193009,4.1234,218.13,218.09,7.26]
[1758626193208,11.7934,218.13,218.03,7.26]
[1758626193514,11.7934,218.13,218.04,113.16]
[1758626193810,7.67,218.13,218.04,113.16]
[1758626194903,4.1239,218.11,218.04,113.16]
[1758626195113,7.67,218.13,218.05,7.26]
[1758626196116,4.1237,218.12,218.05,7.26]
[1758626196413,7.67,218.13,218.05,7.26]
[1758626197913,4.124,218.1,218.03,7.26]
[1758626199619,11.7935,218.13,218.03,11.3851]
[1758626200014,7.67,218.13,218.03,11.3851]
[1758626200722,4.1237,218.12,218.05,4.1248]
[1758626200922,3.00341559,218.16,218.06,7.26]
[1758626201217,10.67341559,218.23,218.07,7.26]
[1758626201417,2.31423636,218.22,218.09,7.26]
[1758626201722,10.67341559,218.23,218.09,7.26]
[1758626201924,10.67341559,218.23,218.12,7.26]
[1758626201925,4.1224,218.19,218.12,7.26]
[1758626202717,4.1218,218.22,218.12,7.26]
[1758626202920,7.67,218.23,218.12,7.26]
[1758626203921,7.67,218.23,218.16,7.22]
[1758626204721,11.7916,218.23,218.16,7.22]
[1758626205618,4.1218,218.22,218.16,7.22]
[1758626208120,7.67,218.23,218.16,7.22]
[1758626209320,349.50341559,218.29,218.16,7.22]
[1758626209529,7.38,218.28,218.17,7.22]
[1758626209722,7.38,218.28,218.16,3.00341559]
[1758626209723,7.38,218.33,218.2,3.00341559]
[1758626209922,2.2961557,218.32,218.21,7.22]
[1758626210225,7.38,218.33,218.21,7.22]
[1758626210722,7.38,218.33,218.23,1.9206796]
[1758626210723,9.3006796,218.33,218.23,1.9206796]
[1758626210925,4.1203,218.29,218.23,1.9206796]
[1758626211126,8.1775432,218.37,218.27,1.9206796]
[1758626211331,4.119,218.36,218.29,1.9206796]
[1758626211828,8.1775432,218.37,218.29,6.0409796]
[1758626212027,7.38,218.37,218.29,6.0409796]
[1758626212227,7.38,218.37,218.29,1.9206796]
[1758626213522,4.1193,218.35,218.29,1.9206796]
[1758626213722,7.38,218.37,218.29,1.9206796]
[1758626213925,7.38,218.34,218.25,62.9006796]
[1758626214930,4.1197,218.33,218.25,62.9006796]
[1758626215527,4.1197,218.33,218.25,1.9206796]
[1758626215733,64.0716,218.37,218.24,7.22]
[1758626215734,13.4205796,218.31,218.24,7.22]
[1758626218040,11.4999,218.31,218.24,9.1406796]
[1758626218434,4.1202,218.3,218.24,7.22]
[1758626221037,7.38,218.31,218.24,7.22]
[1758626221247,4.1197,218.33,218.24,1.9206796]
[1758626221534,1.9206796,218.34,218.19,113.18]
[1758626221535,1.9206796,218.34,218.26,1.9206796]
[1758626221740,1.9206796,218.34,218.27,7.22]
[1758626222139,7.38,218.35,218.27,7.22]
[1758626222646,11.4993,218.35,218.27,7.22]
[1758626223541,11.4993,218.35,218.28,1.9206796]
[1758626223742,7.38,218.35,218.28,1.9206796]
[1758626224136,1.9206796,218.36,218.29,7.22]
[1758626224947,7.38,218.33,218.25,7.22]
[1758626225143,1.9206796,218.32,218.25,7.22]
[1758626225343,7.38,218.33,218.25,7.22]
[1758626226846,11.4996,218.33,218.25,9.1406796]
[1758626228542,1.9206796,218.3,218.2,7.22]
[1758626228739,9.3006796,218.28,218.2,7.22]
[1758626229540,13.4212796,218.28,218.2,7.22]
[1758626232349,7.38,218.25,218.16,9.1406796]
[1758626233752,4.1213,218.24,218.16,13.2632796]
[1758626235146,1.9206796,218.24,218.16,9.1406796]
[1758626235356,7.38,218.25,218.1,455.46720772]
[1758626235357,1.9206796,218.22,218.12,9.6606796]
[1758626235552,4.1219,218.21,218.12,9.6606796]
[1758626235752,7.31,218.23,218.15,7.2]
[1758626236351,4.1217,218.22,218.15,11.3228]
[1758626237243,7.31,218.23,218.16,1.9206796]
[1758626237555,1.9206796,218.26,218.16,1.9206796]
[1758626237758,1.9206796,218.26,218.18,1.9206796]
[1758626239357,1.9206796,218.26,218.16,1.9206796]
[1758626239559,4.1214,218.24,218.16,6.0432796]
[1758626240461,6.0415796,218.26,218.16,1.9206796]
[1758626241255,6.0415796,218.26,218.17,7.2]
[1758626241861,6.0415796,218.26,218.19,4.1221]
[1758626242748,4.1209,218.26,218.19,4.1221]
[1758626244054,4.1211,218.25,218.17,11.3225]
[1758626244255,9.4406796,218.27,218.17,11.3225]
[1758626245860,4.1213,218.24,218.17,11.3225]
[1758626246558,7.52,218.31,218.23,7.2]
[1758626247066,4.1202,218.3,218.23,11.3214]
[1758626247263,4.1202,218.3,218.23,13.2420796]
[1758626247758,7.52,218.34,218.26,7.2]
[1758626247963,7.52,218.34,218.27,1.9206796]
[1758626248959,4.91670665,218.35,218.28,7.2]
[1758626248960,4.1192,218.35,218.28,7.2]
[1758626249162,9.4406796,218.38,218.29,1.9206796]
[1758626249163,4.1188,218.37,218.29,1.9206796]
[1758626250765,4.1188,218.37,218.29,6.0408796]
[1758626251571,4.1188,218.37,218.3,7.2]
[1758626252466,4.1188,218.37,218.31,1.9206796]
[1758626252666,4.1188,218.37,218.3,7.2]
[1758626252667,7.52,218.37,218.32,7.2]
[1758626252969,7.52,218.37,218.2,5.12214023]
[1758626252970,7.52,218.35,218.27,7.2]
[1758626253168,7.52,218.35,218.28,1.9206796]
[1758626253367,7.52,218.35,218.29,7.2]
[1758626253569,1.9206796,218.38,218.29,7.2]
[1758626253778,9.4406796,218.38,218.29,7.2]
[1758626254065,1.9206796,218.36,218.29,7.2]
[1758626254261,7.52,218.35,218.26,1.9206796]
[1758626254463,7.52,218.33,218.25,7.2]
[1758626254667,7.52,218.31,218.21,9.1206796]
[1758626254867,64.0803,218.34,218.21,9.1206796]
[1758626254868,7.52,218.29,218.21,9.1206796]
[1758626255865,4.1206,218.28,218.21,9.1206796]
[1758626256369,4.1209,218.26,218.21,7.2]
[1758626256566,11.6409,218.26,218.21,7.2]
[1758626256970,11.6409,218.26,218.2,1.9206796]
[1758626256971,11.6409,218.26,218.2,9.1206796]
[1758626260977,4.1203,218.29,218.23,7.2]
[1758626261277,4.1203,218.29,218.25,7.2]
[1758626261670,11.6403,218.29,218.25,7.2]
[1758626261975,7.52,218.33,218.26,1.9206796]
[1758626262366,11.6402,218.3,218.24,9.1206796]
[1758626264870,7.52,218.3,218.24,13.2417796]
[1758626265069,4.1198,218.32,218.24,9.1206796]
[1758626265675,4.1198,218.32,218.24,13.2417796]
[1758626266174,4.1198,218.32,218.24,11.3211]
[1758626266374,4.1198,218.32,218.24,13.2417796]
[1758626268177,4.1198,218.32,218.25,4.1209]
[1758626269279,11.1694,218.34,218.26,4.1207]
[1758626269971,4.1196,218.33,218.26,4.1207]
[1758626272875,4.1198,218.32,218.26,4.1207]
[1758626273076,7.05,218.31,218.24,7.2]
[1758626274478,7.05,218.31,218.26,11.3308]
[1758626274681,7.05,218.31,218.26,7.21]
[1758626274978,7.05,218.3,218.24,4.1211]
[1758626275272,7.05,218.3,218.22,120.09]
[1758626275273,7.05,218.3,218.22,7.21]
[1758626276279,7.05,218.3,218.23,4.1213]
[1758626276578,7.05,218.34,218.22,7.21]
[1758626277478,4.1196,218.33,218.22,7.21]
[1758626277872,7.05,218.34,218.22,7.21]
[1758626278174,11.1694,218.34,218.27,11.3305]
[1758626279173,11.1694,218.34,218.28,4.1204]
[1758626279875,7.05,218.34,218.29,4.1202]
[1758626280071,4.1191,218.36,218.22,64.1137]
[1758626280072,7.05,218.38,218.27,7.21]
[1758626280268,7.05,218.38,218.28,86.74]
[1758626280473,7.05,218.38,218.29,7.21]
[1758626280772,7.05,218.38,218.31,4.1198]
[1758626281077,7.05,218.38,218.29,7.21]
[1758626281370,7.05,218.38,218.29,120.05]
[1758626281573,7.05,218.38,218.29,7.21]
[1758626281776,7.05,218.38,218.29,120.03]
[1758626282879,4.1189,218.37,218.29,11.3302]
[1758626283775,71.1147,218.39,218.29,7.21]
[1758626283973,71.1243,218.36,218.25,7.21]
[1758626284171,7.05,218.36,218.25,7.21]
[1758626284378,7.05,218.36,218.3,11.33]
[1758626284571,349.50022092,218.43,218.3,11.33]
[1758626284974,7.05,218.4,218.3,11.33]
[1758626285574,4.1186,218.39,218.3,11.33]
[1758626286084,7.05,218.4,218.3,11.33]
[1758626286881,7.05,218.4,218.3,7.21]
[1758626287082,7.05,218.38,218.24,7.21]
[1758626287282,7.05,218.38,218.26,7.21]
[1758626288275,7.05,218.36,218.26,7.21]
[1758626288479,7.05,218.33,218.22,51.29]
[1758626289377,4.1204,218.29,218.22,51.29]
[1758626289679,7.05,218.33,218.22,7.21]
[1758626289680,7.05,218.3,218.22,7.21]
[1758626289879,4.1208,218.27,218.22,7.21]
[1758626290080,11.1708,218.27,218.22,7.21]
[1758626291182,4.121,218.26,218.18,124.2123]
[1758626291775,4.121,218.26,218.18,11.3323]
[1758626293183,4.1213,218.24,218.18,7.21]
[1758626293784,11.7613,218.24,218.18,7.21]
[1758626295087,11.7613,218.24,218.14,7.22]
[1758626295088,7.24,218.24,218.14,7.22]
[1758626295275,7.24,218.24,218.1,109.16720772]
[1758626295276,71.3545,218.22,218.11,112.92]
[1758626295481,3.00022092,218.21,218.11,112.92]
[1758626295682,7.24,218.19,218.1,7.22]
[1758626295878,7.24,218.19,218.09,346.3]
[1758626295879,3.00022092,218.18,218.09,346.3]
[1758626296083,7.24,218.17,218.09,346.3]
[1758626296483,7.24,218.17,218.06,112.94]
[1758626297190,7.24,218.17,218.08,7.22]
[1758626298393,7.24,218.17,218.09,4.1241]
[1758626298695,7.24,218.17,218.06,177.1005]
[1758626298992,4.1219,218.21,218.12,7.22]
[1758626299783,4.1219,218.21,218.12,11.3433]
[1758626300495,7.24,218.23,218.14,4.123]
[1758626304098,7.24,218.23,218.15,7.22]
[1758626304695,7.24,218.23,218.15,11.3427]
[1758626305097,11.3607,218.27,218.15,7.22]
[1758626306003,11.3607,218.27,218.18,4.1223]
[1758626306303,11.3607,218.27,218.18,11.3423]
[1758626308012,11.3607,218.27,218.19,4.122]
[1758626309305,7.24,218.27,218.21,11.3417]
[1758626309998,11.3607,218.27,218.21,7.22]
[1758626311699,11.3607,218.27,218.18,4.1222]
[1758626311908,7.24,218.29,218.17,7.22]
[1758626312600,3.00022092,218.27,218.17,7.22]
[1758626312805,4.1212,218.25,218.17,7.22]
[1758626313817,7.24,218.23,218.17,7.22]
[1758626314404,11.3615,218.23,218.17,7.22]
[1758626314605,7.24,218.23,218.13,7.22]
[1758626315002,4.1217,218.22,218.14,4.1231]
[1758626318510,7.24,218.23,218.15,4.1228]
[1758626318806,7.24,218.23,218.16,7.22]
[1758626323014,11.3615,218.23,218.16,7.22]
[1758626324909,7.24,218.23,218.16,11.3426]
[1758626327017,7.24,218.23,218.17,4.1224]
[1758626327813,7.24,218.23,218.18,4.1222]
[1758626328013,7.24,218.23,218.19,7.52]
[1758626330717,4.1214,218.24,218.16,4.1227]
[1758626330910,7.66,218.23,218.16,4.1227]
[1758626331314,7.66,218.23,218.14,7.52]
[1758626331315,11.7816,218.23,218.14,11.6431]
[1758626332616,1.92236253,218.22,218.14,11.6431]
[1758626334621,6.04406253,218.22,218.14,11.6431]
[1758626335011,7.66,218.21,218.14,7.52]
[1758626335215,1.92236253,218.22,218.14,7.52]
[1758626335216,7.66,218.18,218.14,7.52]
[1758626335421,1.92236253,218.19,218.1,4.1238]
[1758626335621,7.66,218.18,218.09,353.92]
[1758626336019,1.92236253,218.19,218.09,353.92]
[1758626336324,7.66,218.15,218.09,353.92]
[1758626336524,11.783,218.15,218.09,7.52]
[1758626337017,7.66,218.15,218.09,7.52]
[1758626337925,11.7833,218.13,218.09,7.52]
[1758626338119,7.66,218.13,218.1,7.52]
[1758626338422,7.66,218.2,218.12,7.52]
[1758626339626,7.66,218.2,218.12,11.6433]
[1758626339821,7.66,218.2,218.12,13.56566253]
[1758626340217,4.1216,218.23,218.15,9.44236253]
[1758626341830,4.1216,218.23,218.15,13.56516253]
[1758626342128,7.66,218.25,218.18,7.52]
[1758626343833,7.66,218.25,218.18,11.6422]
[1758626344536,13.70356253,218.25,218.18,7.52]
[1758626346734,9.58236253,218.25,218.18,7.52]
[1758626347433,7.66,218.25,218.18,7.52]
[1758626349631,1.92236253,218.27,218.19,6.04436253]
[1758626349831,7.66,218.29,218.22,7.52]
[1758626352029,4.12,218.31,218.23,1.92236253]
[1758626352235,7.66,218.32,218.24,7.52]
[1758626353134,7.66,218.32,218.25,1.92236253]
[1758626353728,0.7975432,218.34,218.27,4.1206]
[1758626354337,0.7975432,218.34,218.26,7.53]
[1758626354536,7.56,218.33,218.26,7.53]
[1758626355637,7.42,218.29,218.21,7.75]
[1758626356941,1.92236253,218.26,218.16,9.67236253]
[1758626357142,9.34236253,218.24,218.16,7.75]
[1758626357839,13.46366253,218.24,218.16,7.75]
[1758626358041,6.04366253,218.24,218.15,4.1229]
[1758626358340,9.34236253,218.24,218.16,7.75]
[1758626359848,4.1215,218.23,218.16,7.75]
[1758626360548,11.5418,218.21,218.12,13.79576253]
[1758626361647,4.1218,218.21,218.12,6.04576253]
[1758626361846,4.1218,218.21,218.13,7.75]
[1758626362044,4.1221,218.2,218.13,7.75]
[1758626362241,7.42,218.19,218.13,7.75]
[1758626363948,13.46366253,218.24,218.15,7.75]
[1758626364643,13.46366253,218.24,218.16,1.92236253]
[1758626364844,7.42,218.24,218.16,1.92236253]
[1758626365043,1.92236253,218.28,218.18,1.92236253]
[1758626366948,6.04286253,218.28,218.18,6.04466253]